[Event "Titled Tuesday Blitz August 1 Early 2023"]
[White "Khromkin, Andrey"]
[Black "Lakshmi C"]
[WhiteFideId "4154126"]
[BlackFideId "25035347"]
[WhiteElo "2440"]
[BlackElo "2081"]
[Result "1-0"]
[Round "7"]
[TimeControl "180+1"]
[Date "2023.08.01"]
[WhiteClock "0:02:00"]
[BlackClock "0:00:00"]
[Board "194"]

1. d4 {[%clk 0:03:00]}  Nf6 {[%clk 0:01:42]} 2. c4 {[%clk 0:02:33]}  e6 {[%clk 0:01:42]} 3. Nf3 {[%clk 0:02:33]}  b6 {[%clk 0:01:42]} 4. g3 {[%clk 0:02:33]}  Bb7 {[%clk 0:01:42]} 5. Bg2 {[%clk 0:02:34]}  Be7 {[%clk 0:01:43]} 6. O-O {[%clk 0:02:34]}  O-O {[%clk 0:01:43]} 7. Qc2 {[%clk 0:02:33]}  Ne4 {[%clk 0:01:24]} 8. Nfd2 {[%clk 0:02:28]}  f5 {[%clk 0:00:12]} 9. Nxe4 {[%clk 0:02:27]}  fxe4 {[%clk 0:00:12]} 10. Bxe4 {[%clk 0:02:28]}  Bxe4 {[%clk 0:00:10]} 11. Qxe4 {[%clk 0:02:28]}  c6 {[%clk 0:00:09]} 12. Nc3 {[%clk 0:02:28]}  Na6 {[%clk 0:00:09]} 13. d5 {[%clk 0:02:26]}  exd5 {[%clk 0:00:08]} 14. cxd5 {[%clk 0:02:26]}  Nc5 {[%clk 0:00:09]} 15. Qc4 {[%clk 0:02:25]}  Kh8 {[%clk 0:00:08]} 16. Bf4 {[%clk 0:02:22]}  b5 {[%clk 0:00:08]} 17. Qd4 {[%clk 0:02:20]}  Nb7 {[%clk 0:00:04]} 18. Rad1 {[%clk 0:02:11]}  Bf6 {[%clk 0:00:04]} 19. Qd2 {[%clk 0:02:07]}  b4 {[%clk 0:00:04]} 20. Ne4 {[%clk 0:02:07]}  c5 {[%clk 0:00:00]} 21. d6 {[%clk 0:02:00]} 1-0


[Site "https://www.chess.com"]

[Event "Titled Tuesday Blitz August 1 Early 2023"]
[White "rikchessmx"]
[Black "Balla, Tamas-Kristof"]
[BlackFideId "1208497"]
[WhiteElo "2222"]
[BlackElo "2411"]
[Result "0-1"]
[Round "7"]
[TimeControl "180+1"]
[Date "2023.08.01"]
[WhiteClock "0:01:26"]
[BlackClock "0:01:23"]
[Board "195"]

1. e4 {[%clk 0:03:00]}  c5 {[%clk 0:03:00]} 2. Nf3 {[%clk 0:03:00]}  Nc6 {[%clk 0:02:59]} 3. d4 {[%clk 0:03:01]}  cxd4 {[%clk 0:03:00]} 4. Nxd4 {[%clk 0:03:01]}  e5 {[%clk 0:02:59]} 5. Nxc6 {[%clk 0:03:01]}  bxc6 {[%clk 0:02:59]} 6. Nc3 {[%clk 0:02:58]}  Nf6 {[%clk 0:02:52]} 7. Bd3 {[%clk 0:02:57]}  Bb4 {[%clk 0:02:50]} 8. O-O {[%clk 0:02:56]}  Bxc3 {[%clk 0:02:49]} 9. bxc3 {[%clk 0:02:55]}  h6 {[%clk 0:02:48]} 10. c4 {[%clk 0:02:55]}  O-O {[%clk 0:02:47]} 11. f4 {[%clk 0:02:48]}  d6 {[%clk 0:02:35]} 12. Qf3 {[%clk 0:02:08]}  Re8 {[%clk 0:01:58]} 13. f5 {[%clk 0:02:04]}  d5 {[%clk 0:01:50]} 14. cxd5 {[%clk 0:02:04]}  cxd5 {[%clk 0:01:49]} 15. Qg3 {[%clk 0:01:56]}  Kh8 {[%clk 0:01:46]} 16. exd5 {[%clk 0:01:55]}  e4 {[%clk 0:01:44]} 17. Bc4 {[%clk 0:01:47]}  Bb7 {[%clk 0:01:34]} 18. Bb5 {[%clk 0:01:33]}  Qb6+ {[%clk 0:01:28]} 19. Kh1 {[%clk 0:01:32]}  Qxb5 {[%clk 0:01:28]} 20. Qh4 {[%clk 0:01:26]}  Qxf1# {[%clk 0:01:23]} 0-1


[Site "https://www.chess.com"]

[Event "Titled Tuesday Blitz August 1 Early 2023"]
[White "Ionescu, Mihai"]
[Black "hsd2016"]
[WhiteFideId "1202499"]
[WhiteElo "2391"]
[BlackElo "2218"]
[Result "0-1"]
[Round "7"]
[TimeControl "180+1"]
[Date "2023.08.01"]
[WhiteClock "0:00:00"]
[BlackClock "0:00:28"]
[Board "196"]

1. Nf3 {[%clk 0:02:54]}  Nf6 {[%clk 0:03:00]} 2. c4 {[%clk 0:02:46]}  c6 {[%clk 0:03:00]} 3. g3 {[%clk 0:02:45]}  d5 {[%clk 0:03:00]} 4. d4 {[%clk 0:02:44]}  Bf5 {[%clk 0:02:59]} 5. Bg2 {[%clk 0:02:44]}  Nbd7 {[%clk 0:02:59]} 6. O-O {[%clk 0:02:43]}  e6 {[%clk 0:03:00]} 7. b3 {[%clk 0:02:40]}  Be7 {[%clk 0:02:58]} 8. Bb2 {[%clk 0:02:40]}  O-O {[%clk 0:02:58]} 9. Nbd2 {[%clk 0:02:38]}  h6 {[%clk 0:02:59]} 10. Re1 {[%clk 0:02:37]}  a5 {[%clk 0:02:52]} 11. Ne5 {[%clk 0:02:28]}  Nxe5 {[%clk 0:02:47]} 12. dxe5 {[%clk 0:02:26]}  Nd7 {[%clk 0:02:46]} 13. e4 {[%clk 0:02:25]}  dxe4 {[%clk 0:02:40]} 14. Nxe4 {[%clk 0:02:24]}  Nc5 {[%clk 0:02:38]} 15. Nxc5 {[%clk 0:02:08]}  Bxc5 {[%clk 0:02:37]} 16. Qe2 {[%clk 0:02:06]}  Qb6 {[%clk 0:02:22]} 17. Red1 {[%clk 0:01:57]}  Rad8 {[%clk 0:02:09]} 18. Bc3 {[%clk 0:01:50]}  Bb4 {[%clk 0:01:59]} 19. Bxb4 {[%clk 0:01:46]}  Qxb4 {[%clk 0:02:00]} 20. Rxd8 {[%clk 0:01:28]}  Rxd8 {[%clk 0:01:59]} 21. Rd1 {[%clk 0:01:28]}  Rxd1+ {[%clk 0:01:50]} 22. Qxd1 {[%clk 0:01:27]}  Qc3 {[%clk 0:01:50]} 23. f4 {[%clk 0:01:07]}  Qe3+ {[%clk 0:01:48]} 24. Kh1 {[%clk 0:01:06]}  Be4 {[%clk 0:01:47]} 25. Bxe4 {[%clk 0:00:49]}  Qxe4+ {[%clk 0:01:47]} 26. Kg1 {[%clk 0:00:50]}  Qe3+ {[%clk 0:01:48]} 27. Kg2 {[%clk 0:00:50]}  Qe4+ {[%clk 0:01:46]} 28. Kf1 {[%clk 0:00:51]}  Qh1+ {[%clk 0:01:46]} 29. Ke2 {[%clk 0:00:51]}  Qxh2+ {[%clk 0:01:46]} 30. Ke3 {[%clk 0:00:41]}  Qxg3+ {[%clk 0:01:46]} 31. Ke4 {[%clk 0:00:42]}  Kh7 {[%clk 0:01:11]} 32. Qd7 {[%clk 0:00:35]}  h5 {[%clk 0:00:40]} 33. Qxb7 {[%clk 0:00:19]}  Kg6 {[%clk 0:00:32]} 34. Qc8 {[%clk 0:00:06]}  Qg2+ {[%clk 0:00:30]} 35. Ke3 {[%clk 0:00:05]}  Qxa2 {[%clk 0:00:30]} 36. Qxc6 {[%clk 0:00:02]}  Qxb3+ {[%clk 0:00:30]} 37. Kd4 {[%clk 0:00:02]}  Qb2+ {[%clk 0:00:30]} 38. Kd3 {[%clk 0:00:00]}  Qb1+ {[%clk 0:00:28]} 0-1


[Site "https://www.chess.com"]

[Event "Titled Tuesday Blitz August 1 Early 2023"]
[White "alfianasybullina"]
[Black "Akylbek2021"]
[WhiteElo "2213"]
[BlackElo "2334"]
[Result "1-0"]
[Round "7"]
[TimeControl "180+1"]
[Date "2023.08.01"]
[WhiteClock "0:00:48"]
[BlackClock "0:00:02"]
[Board "197"]

1. Nf3 {[%clk 0:03:00]}  Nf6 {[%clk 0:01:51]} 2. g3 {[%clk 0:03:00]}  b5 {[%clk 0:01:51]} 3. Bg2 {[%clk 0:02:59]}  Bb7 {[%clk 0:01:51]} 4. O-O {[%clk 0:02:59]}  e6 {[%clk 0:01:52]} 5. d4 {[%clk 0:02:59]}  Be7 {[%clk 0:01:52]} 6. a4 {[%clk 0:02:47]}  b4 {[%clk 0:01:51]} 7. c4 {[%clk 0:02:47]}  bxc3 {[%clk 0:01:49]} 8. Nxc3 {[%clk 0:02:45]}  O-O {[%clk 0:01:49]} 9. b3 {[%clk 0:02:36]}  d6 {[%clk 0:01:46]} 10. Bb2 {[%clk 0:02:36]}  a5 {[%clk 0:01:41]} 11. Rc1 {[%clk 0:02:36]}  Na6 {[%clk 0:01:37]} 12. Nd2 {[%clk 0:02:18]}  Bxg2 {[%clk 0:01:36]} 13. Kxg2 {[%clk 0:02:19]}  c5 {[%clk 0:01:37]} 14. Nc4 {[%clk 0:02:14]}  Rc8 {[%clk 0:01:21]} 15. d5 {[%clk 0:02:13]}  e5 {[%clk 0:01:15]} 16. e4 {[%clk 0:02:13]}  Nb4 {[%clk 0:01:15]} 17. f4 {[%clk 0:02:01]}  exf4 {[%clk 0:01:04]} 18. gxf4 {[%clk 0:01:58]}  Qd7 {[%clk 0:01:01]} 19. h3 {[%clk 0:01:55]}  g6 {[%clk 0:00:54]} 20. Qf3 {[%clk 0:01:55]}  Rfe8 {[%clk 0:00:46]} 21. Nb6 {[%clk 0:01:53]}  Qb7 {[%clk 0:00:35]} 22. Nxc8 {[%clk 0:01:53]}  Rxc8 {[%clk 0:00:36]} 23. Nb5 {[%clk 0:01:49]}  Ne8 {[%clk 0:00:31]} 24. Rcd1 {[%clk 0:01:26]}  Rd8 {[%clk 0:00:15]} 25. Rfe1 {[%clk 0:01:22]}  Bf6 {[%clk 0:00:12]} 26. Qf2 {[%clk 0:01:15]}  Kg7 {[%clk 0:00:05]} 27. Kh2 {[%clk 0:01:07]}  Qd7 {[%clk 0:00:04]} 28. Bxf6+ {[%clk 0:01:01]}  Nxf6 {[%clk 0:00:04]} 29. Qb2 {[%clk 0:01:00]}  Qe7 {[%clk 0:00:02]} 30. e5 {[%clk 0:01:00]}  dxe5 {[%clk 0:00:01]} 31. Rxe5 {[%clk 0:00:56]}  Nfxd5 {[%clk 0:00:02]} 32. Rxe7+ {[%clk 0:00:55]}  Kf8 {[%clk 0:00:01]} 33. Ree1 {[%clk 0:00:50]}  Kg8 {[%clk 0:00:01]} 34. Nc7 {[%clk 0:00:49]}  Rc8 {[%clk 0:00:01]} 35. Nxd5 {[%clk 0:00:48]}  Nxd5 {[%clk 0:00:02]} 36. Rxd5 {[%clk 0:00:48]} 1-0


[Site "https://www.chess.com"]

[Event "Titled Tuesday Blitz August 1 Early 2023"]
[White "BeautiFullMindChess"]
[Black "Zaksaite, Salomeja"]
[BlackFideId "12801496"]
[WhiteElo "2164"]
[BlackElo "2299"]
[Result "0-1"]
[Round "7"]
[TimeControl "180+1"]
[Date "2023.08.01"]
[WhiteClock "0:00:00"]
[BlackClock "0:00:02"]
[Board "200"]

1. e4 {[%clk 0:02:42]}  c5 {[%clk 0:02:57]} 2. c3 {[%clk 0:02:40]}  Nf6 {[%clk 0:02:55]} 3. e5 {[%clk 0:02:40]}  Nd5 {[%clk 0:02:55]} 4. d4 {[%clk 0:02:41]}  cxd4 {[%clk 0:02:53]} 5. Nf3 {[%clk 0:02:42]}  e6 {[%clk 0:02:52]} 6. cxd4 {[%clk 0:02:41]}  d6 {[%clk 0:02:51]} 7. exd6 {[%clk 0:02:40]}  Bxd6 {[%clk 0:02:51]} 8. Nc3 {[%clk 0:02:41]}  Nxc3 {[%clk 0:02:49]} 9. bxc3 {[%clk 0:02:41]}  Qc7 {[%clk 0:02:50]} 10. Bb2 {[%clk 0:02:29]}  O-O {[%clk 0:02:48]} 11. Bd3 {[%clk 0:02:29]}  Nd7 {[%clk 0:02:39]} 12. O-O {[%clk 0:02:10]}  Nf6 {[%clk 0:02:31]} 13. c4 {[%clk 0:02:10]}  b6 {[%clk 0:02:28]} 14. d5 {[%clk 0:01:38]}  e5 {[%clk 0:02:11]} 15. Re1 {[%clk 0:01:22]}  Re8 {[%clk 0:01:52]} 16. Qc2 {[%clk 0:01:13]}  Bg4 {[%clk 0:01:49]} 17. Ng5 {[%clk 0:01:11]}  h6 {[%clk 0:01:48]} 18. Ne4 {[%clk 0:00:59]}  Nxe4 {[%clk 0:01:48]} 19. Bxe4 {[%clk 0:00:58]}  Rac8 {[%clk 0:01:48]} 20. Rac1 {[%clk 0:00:55]}  g6 {[%clk 0:01:44]} 21. Bxg6 {[%clk 0:00:53]}  fxg6 {[%clk 0:01:43]} 22. Qxg6+ {[%clk 0:00:51]}  Qg7 {[%clk 0:01:22]} 23. Qxd6 {[%clk 0:00:50]}  Bf3 {[%clk 0:01:17]} 24. g3 {[%clk 0:00:50]}  Rcd8 {[%clk 0:00:27]} 25. Qa3 {[%clk 0:00:43]}  Rf8 {[%clk 0:00:27]} 26. Rxe5 {[%clk 0:00:39]}  Qg4 {[%clk 0:00:22]} 27. Re7 {[%clk 0:00:19]}  Rf7 {[%clk 0:00:16]} 28. Rxf7 {[%clk 0:00:17]}  Kxf7 {[%clk 0:00:16]} 29. Re1 {[%clk 0:00:17]}  Rd7 {[%clk 0:00:15]} 30. Qe3 {[%clk 0:00:15]}  Kg6 {[%clk 0:00:07]} 31. Qe8+ {[%clk 0:00:12]}  Kh7 {[%clk 0:00:03]} 32. Qh8+ {[%clk 0:00:09]}  Kg6 {[%clk 0:00:03]} 33. Re6+ {[%clk 0:00:00]}  Qxe6 {[%clk 0:00:02]} 0-1


[Site "https://www.chess.com"]

[Event "Titled Tuesday Blitz August 1 Early 2023"]
[White "Vila Dupla, Aurelio"]
[Black "EdmundPlayer"]
[WhiteFideId "2203383"]
[WhiteElo "2134"]
[BlackElo "2264"]
[Result "1-0"]
[Round "7"]
[TimeControl "180+1"]
[Date "2023.08.01"]
[WhiteClock "0:00:24"]
[BlackClock "0:00:00"]
[Board "201"]

1. Nf3 {[%clk 0:03:00]}  d5 {[%clk 0:02:58]} 2. d4 {[%clk 0:03:00]}  Nf6 {[%clk 0:02:56]} 3. c4 {[%clk 0:03:01]}  dxc4 {[%clk 0:02:56]} 4. e3 {[%clk 0:03:00]}  Bg4 {[%clk 0:02:56]} 5. Bxc4 {[%clk 0:02:57]}  e6 {[%clk 0:02:57]} 6. Qb3 {[%clk 0:02:55]}  c5 {[%clk 0:02:51]} 7. Ne5 {[%clk 0:02:32]}  Qb6 {[%clk 0:02:03]} 8. Bb5+ {[%clk 0:02:21]}  Ke7 {[%clk 0:01:55]} 9. Nxg4 {[%clk 0:02:01]}  Nxg4 {[%clk 0:01:54]} 10. dxc5 {[%clk 0:02:01]}  Qxc5 {[%clk 0:01:43]} 11. O-O {[%clk 0:02:01]}  Qe5 {[%clk 0:01:18]} 12. f4 {[%clk 0:01:52]}  Qc5 {[%clk 0:01:05]} 13. h3 {[%clk 0:01:50]}  Nf6 {[%clk 0:00:56]} 14. Bd2 {[%clk 0:01:50]}  Nc6 {[%clk 0:00:42]} 15. Rc1 {[%clk 0:01:46]}  Qb6 {[%clk 0:00:40]} 16. Nc3 {[%clk 0:01:26]}  a6 {[%clk 0:00:31]} 17. Bxc6 {[%clk 0:01:05]}  Qxb3 {[%clk 0:00:32]} 18. axb3 {[%clk 0:01:05]}  bxc6 {[%clk 0:00:33]} 19. Na4 {[%clk 0:01:00]}  Ne4 {[%clk 0:00:24]} 20. Bb4+ {[%clk 0:00:57]}  Kf6 {[%clk 0:00:24]} 21. Bxf8 {[%clk 0:00:56]}  Rhxf8 {[%clk 0:00:25]} 22. Rxc6 {[%clk 0:00:56]}  Rfd8 {[%clk 0:00:19]} 23. Nc3 {[%clk 0:00:51]}  Ng3 {[%clk 0:00:08]} 24. Raxa6 {[%clk 0:00:47]}  Rxa6 {[%clk 0:00:08]} 25. Rxa6 {[%clk 0:00:47]}  Rd2 {[%clk 0:00:09]} 26. Ra2 {[%clk 0:00:35]}  h5 {[%clk 0:00:09]} 27. b4 {[%clk 0:00:35]}  h4 {[%clk 0:00:10]} 28. b5 {[%clk 0:00:34]}  Rc2 {[%clk 0:00:09]} 29. Ra1 {[%clk 0:00:29]}  Rxb2 {[%clk 0:00:09]} 30. Rb1 {[%clk 0:00:29]}  Ne2+ {[%clk 0:00:06]} 31. Kf2 {[%clk 0:00:27]}  Rxb1 {[%clk 0:00:04]} 32. Nxb1 {[%clk 0:00:27]}  Ng3 {[%clk 0:00:03]} 33. b6 {[%clk 0:00:26]}  Ne4+ {[%clk 0:00:04]} 34. Kf3 {[%clk 0:00:25]}  Nc5 {[%clk 0:00:04]} 35. Kg4 {[%clk 0:00:25]}  g5 {[%clk 0:00:03]} 36. fxg5+ {[%clk 0:00:24]}  Ke5 {[%clk 0:00:00]} 37. Nd2 {[%clk 0:00:24]} 1-0


[Site "https://www.chess.com"]

[Event "Titled Tuesday Blitz August 1 Early 2023"]
[White "Thiel, Thomas"]
[Black "Goughfather"]
[WhiteFideId "4615964"]
[WhiteElo "2250"]
[BlackElo "2098"]
[Result "1-0"]
[Round "7"]
[TimeControl "180+1"]
[Date "2023.08.01"]
[WhiteClock "0:00:28"]
[BlackClock "0:00:00"]
[Board "204"]

1. e4 {[%clk 0:03:00]}  c6 {[%clk 0:02:59]} 2. d4 {[%clk 0:02:58]}  d5 {[%clk 0:03:00]} 3. exd5 {[%clk 0:02:59]}  cxd5 {[%clk 0:03:00]} 4. c4 {[%clk 0:02:59]}  Nf6 {[%clk 0:02:59]} 5. Nc3 {[%clk 0:02:58]}  Nc6 {[%clk 0:02:59]} 6. Bg5 {[%clk 0:02:55]}  dxc4 {[%clk 0:02:35]} 7. Bxc4 {[%clk 0:02:52]}  h6 {[%clk 0:02:32]} 8. Qb3 {[%clk 0:02:50]}  e6 {[%clk 0:01:44]} 9. Bxf6 {[%clk 0:02:44]}  Qxf6 {[%clk 0:01:37]} 10. Nf3 {[%clk 0:02:43]}  Bd7 {[%clk 0:01:20]} 11. O-O {[%clk 0:02:39]}  Na5 {[%clk 0:01:18]} 12. Qc2 {[%clk 0:02:30]}  Nxc4 {[%clk 0:01:18]} 13. d5 {[%clk 0:02:23]}  Ne5 {[%clk 0:01:11]} 14. Nd4 {[%clk 0:02:13]}  a6 {[%clk 0:00:57]} 15. dxe6 {[%clk 0:02:12]}  fxe6 {[%clk 0:00:56]} 16. Rae1 {[%clk 0:02:05]}  Bd6 {[%clk 0:00:52]} 17. Ne4 {[%clk 0:02:03]}  Qe7 {[%clk 0:00:40]} 18. f4 {[%clk 0:01:59]}  Rc8 {[%clk 0:00:33]} 19. Nxd6+ {[%clk 0:01:54]}  Qxd6 {[%clk 0:00:31]} 20. Qd1 {[%clk 0:01:46]}  Nf7 {[%clk 0:00:18]} 21. f5 {[%clk 0:01:42]}  e5 {[%clk 0:00:15]} 22. Ne6 {[%clk 0:01:34]}  Bxe6 {[%clk 0:00:09]} 23. fxe6 {[%clk 0:01:31]}  Qxe6 {[%clk 0:00:09]} 24. Qa4+ {[%clk 0:01:10]}  b5 {[%clk 0:00:09]} 25. Qa3 {[%clk 0:01:10]}  Qe7 {[%clk 0:00:08]} 26. Qxa6 {[%clk 0:01:06]}  O-O {[%clk 0:00:07]} 27. h3 {[%clk 0:01:01]}  Qc5+ {[%clk 0:00:07]} 28. Kh1 {[%clk 0:01:00]}  Rc6 {[%clk 0:00:07]} 29. Qa5 {[%clk 0:00:53]}  Rg6 {[%clk 0:00:06]} 30. Qd2 {[%clk 0:00:46]}  Qd4 {[%clk 0:00:06]} 31. Qe2 {[%clk 0:00:45]}  Qc4 {[%clk 0:00:02]} 32. Qh5 {[%clk 0:00:34]}  Rg5 {[%clk 0:00:02]} 33. Qf3 {[%clk 0:00:32]}  Qxa2 {[%clk 0:00:00]} 34. Rf2 {[%clk 0:00:28]} 1-0


[Site "https://www.chess.com"]

[Event "Titled Tuesday Blitz August 1 Early 2023"]
[White "Winkels, Marcel"]
[Black "Clawitter, Craig"]
[WhiteFideId "1003887"]
[BlackFideId "2023105"]
[WhiteElo "2097"]
[BlackElo "2245"]
[Result "1-0"]
[Round "7"]
[TimeControl "180+1"]
[Date "2023.08.01"]
[WhiteClock "0:00:03"]
[BlackClock "0:00:00"]
[Board "205"]

1. e4 {[%clk 0:03:00]}  e6 {[%clk 0:02:51]} 2. d4 {[%clk 0:02:59]}  d5 {[%clk 0:02:51]} 3. e5 {[%clk 0:02:58]}  c5 {[%clk 0:02:51]} 4. c3 {[%clk 0:02:58]}  Qb6 {[%clk 0:02:51]} 5. Bd3 {[%clk 0:02:45]}  Nc6 {[%clk 0:02:43]} 6. Nf3 {[%clk 0:02:36]}  cxd4 {[%clk 0:02:42]} 7. O-O {[%clk 0:02:35]}  Bd7 {[%clk 0:02:42]} 8. Re1 {[%clk 0:02:07]}  Nge7 {[%clk 0:02:36]} 9. h4 {[%clk 0:02:01]}  g6 {[%clk 0:02:16]} 10. Na3 {[%clk 0:01:48]}  dxc3 {[%clk 0:02:15]} 11. bxc3 {[%clk 0:01:42]}  Bg7 {[%clk 0:02:14]} 12. Nb5 {[%clk 0:01:40]}  O-O {[%clk 0:02:12]} 13. Rb1 {[%clk 0:01:36]}  Qd8 {[%clk 0:01:54]} 14. Nd6 {[%clk 0:01:32]}  b6 {[%clk 0:01:49]} 15. Bg5 {[%clk 0:01:30]}  h6 {[%clk 0:01:46]} 16. Bf4 {[%clk 0:01:27]}  Nf5 {[%clk 0:01:41]} 17. Qd2 {[%clk 0:01:18]}  Nxh4 {[%clk 0:01:31]} 18. Be2 {[%clk 0:00:44]}  Nxf3+ {[%clk 0:01:19]} 19. Bxf3 {[%clk 0:00:44]}  g5 {[%clk 0:01:20]} 20. Bg3 {[%clk 0:00:40]}  f6 {[%clk 0:01:10]} 21. exf6 {[%clk 0:00:29]}  Qxf6 {[%clk 0:01:10]} 22. Rbc1 {[%clk 0:00:18]}  Be8 {[%clk 0:00:50]} 23. Nxe8 {[%clk 0:00:16]}  Raxe8 {[%clk 0:00:49]} 24. c4 {[%clk 0:00:16]}  Nd4 {[%clk 0:00:44]} 25. Bd1 {[%clk 0:00:13]}  Nf5 {[%clk 0:00:36]} 26. Be5 {[%clk 0:00:13]}  Qg6 {[%clk 0:00:28]} 27. cxd5 {[%clk 0:00:12]}  exd5 {[%clk 0:00:22]} 28. Qxd5+ {[%clk 0:00:10]}  Kh7 {[%clk 0:00:23]} 29. Bc2 {[%clk 0:00:07]}  Re6 {[%clk 0:00:03]} 30. Bxg7 {[%clk 0:00:06]}  Kxg7 {[%clk 0:00:03]} 31. Rxe6 {[%clk 0:00:05]}  Qf7 {[%clk 0:00:03]} 32. Qe5+ {[%clk 0:00:04]}  Kh7 {[%clk 0:00:03]} 33. Bxf5+ {[%clk 0:00:04]}  Qxf5 {[%clk 0:00:03]} 34. Re7+ {[%clk 0:00:04]}  Kg8 {[%clk 0:00:03]} 35. Qxf5 {[%clk 0:00:04]}  Rxf5 {[%clk 0:00:03]} 36. Rc8+ {[%clk 0:00:04]}  Rf8 {[%clk 0:00:03]} 37. Rxf8+ {[%clk 0:00:04]}  Kxf8 {[%clk 0:00:04]} 38. Rxa7 {[%clk 0:00:04]}  b5 {[%clk 0:00:00]} 39. Rb7 {[%clk 0:00:03]} 1-0


[Site "https://www.chess.com"]

[Event "Titled Tuesday Blitz August 1 Early 2023"]
[White "Slayyy_200"]
[Black "Tuleyeva-Aketayeva, Dana"]
[BlackFideId "13701932"]
[WhiteElo "2035"]
[BlackElo "2227"]
[Result "0-1"]
[Round "7"]
[TimeControl "180+1"]
[Date "2023.08.01"]
[WhiteClock "0:00:05"]
[BlackClock "0:01:15"]
[Board "207"]

1. e4 {[%clk 0:02:59]}  c5 {[%clk 0:02:51]} 2. d4 {[%clk 0:02:57]}  cxd4 {[%clk 0:02:50]} 3. c3 {[%clk 0:02:58]}  dxc3 {[%clk 0:02:49]} 4. Nxc3 {[%clk 0:02:58]}  Nc6 {[%clk 0:02:48]} 5. Nf3 {[%clk 0:02:57]}  g6 {[%clk 0:02:47]} 6. Bc4 {[%clk 0:02:54]}  Bg7 {[%clk 0:02:42]} 7. e5 {[%clk 0:02:42]}  Nh6 {[%clk 0:02:29]} 8. O-O {[%clk 0:01:59]}  O-O {[%clk 0:02:28]} 9. Bf4 {[%clk 0:01:56]}  Nf5 {[%clk 0:02:22]} 10. g4 {[%clk 0:01:41]}  Nh6 {[%clk 0:02:21]} 11. h3 {[%clk 0:01:37]}  Kh8 {[%clk 0:02:18]} 12. Ne4 {[%clk 0:01:01]}  b6 {[%clk 0:02:00]} 13. Qd2 {[%clk 0:00:49]}  Ng8 {[%clk 0:01:54]} 14. Nfg5 {[%clk 0:00:47]}  Nh6 {[%clk 0:01:49]} 15. Nf3 {[%clk 0:00:42]}  Ng8 {[%clk 0:01:49]} 16. Nfg5 {[%clk 0:00:42]}  e6 {[%clk 0:01:43]} 17. Nd6 {[%clk 0:00:30]}  Qe7 {[%clk 0:01:35]} 18. Ngxf7+ {[%clk 0:00:20]}  Rxf7 {[%clk 0:01:35]} 19. Bg5 {[%clk 0:00:20]}  Qf8 {[%clk 0:01:33]} 20. Nxf7+ {[%clk 0:00:19]}  Qxf7 {[%clk 0:01:34]} 21. f4 {[%clk 0:00:18]}  Bb7 {[%clk 0:01:25]} 22. f5 {[%clk 0:00:18]}  Nxe5 {[%clk 0:01:21]} 23. fxe6 {[%clk 0:00:14]}  Nf3+ {[%clk 0:01:20]} 24. Rxf3 {[%clk 0:00:08]}  Qxf3 {[%clk 0:01:21]} 25. exd7 {[%clk 0:00:06]}  Qh1+ {[%clk 0:01:20]} 26. Kf2 {[%clk 0:00:06]}  Qg2+ {[%clk 0:01:20]} 27. Ke3 {[%clk 0:00:05]}  Qf3# {[%clk 0:01:15]} 0-1


[Site "https://www.chess.com"]

[Event "Titled Tuesday Blitz August 1 Early 2023"]
[White "Vidruska, Renate"]
[Black "Osiecki, Stanislaw"]
[WhiteFideId "11601841"]
[BlackFideId "1102990"]
[WhiteElo "2224"]
[BlackElo "2015"]
[Result "1-0"]
[Round "7"]
[TimeControl "180+1"]
[Date "2023.08.01"]
[WhiteClock "0:00:16"]
[BlackClock "0:00:00"]
[Board "208"]

1. e4 {[%clk 0:02:58]}  e6 {[%clk 0:02:57]} 2. d4 {[%clk 0:02:58]}  d5 {[%clk 0:02:57]} 3. Nc3 {[%clk 0:02:54]}  Bb4 {[%clk 0:02:56]} 4. exd5 {[%clk 0:02:55]}  exd5 {[%clk 0:02:55]} 5. Bd3 {[%clk 0:02:55]}  Nc6 {[%clk 0:02:54]} 6. Ne2 {[%clk 0:02:55]}  Bg4 {[%clk 0:02:54]} 7. f3 {[%clk 0:02:53]}  Bh5 {[%clk 0:02:54]} 8. O-O {[%clk 0:02:53]}  Nge7 {[%clk 0:02:54]} 9. a3 {[%clk 0:02:48]}  Bd6 {[%clk 0:02:45]} 10. Nb5 {[%clk 0:02:45]}  O-O {[%clk 0:02:43]} 11. Nxd6 {[%clk 0:02:45]}  Qxd6 {[%clk 0:02:40]} 12. Nf4 {[%clk 0:02:39]}  Bg6 {[%clk 0:02:39]} 13. Nxg6 {[%clk 0:02:39]}  hxg6 {[%clk 0:02:38]} 14. c3 {[%clk 0:02:38]}  Rfe8 {[%clk 0:02:36]} 15. Bd2 {[%clk 0:02:36]}  Na5 {[%clk 0:02:34]} 16. Qa4 {[%clk 0:02:20]}  b6 {[%clk 0:02:26]} 17. Rae1 {[%clk 0:02:18]}  c5 {[%clk 0:02:07]} 18. dxc5 {[%clk 0:02:09]}  Qxc5+ {[%clk 0:02:07]} 19. Be3 {[%clk 0:02:10]}  Qc7 {[%clk 0:01:58]} 20. Bg5 {[%clk 0:02:04]}  f6 {[%clk 0:01:57]} 21. Bh4 {[%clk 0:01:59]}  Kf7 {[%clk 0:01:55]} 22. Bg3 {[%clk 0:01:57]}  Qb7 {[%clk 0:01:37]} 23. Qg4 {[%clk 0:01:51]}  Nac6 {[%clk 0:01:18]} 24. h4 {[%clk 0:01:42]}  Qc8 {[%clk 0:01:16]} 25. Qa4 {[%clk 0:01:34]}  Nf5 {[%clk 0:01:03]} 26. Rxe8 {[%clk 0:01:26]}  Qxe8 {[%clk 0:01:00]} 27. Re1 {[%clk 0:01:25]}  Qd7 {[%clk 0:00:59]} 28. Bb5 {[%clk 0:01:20]}  Rc8 {[%clk 0:00:56]} 29. Bf2 {[%clk 0:01:16]}  Nd6 {[%clk 0:00:43]} 30. Ba6 {[%clk 0:01:15]}  Re8 {[%clk 0:00:41]} 31. Rd1 {[%clk 0:01:12]}  Nb7 {[%clk 0:00:30]} 32. Rxd5 {[%clk 0:01:04]}  Qc7 {[%clk 0:00:24]} 33. Bc4 {[%clk 0:00:59]}  Kf8 {[%clk 0:00:23]} 34. Bb5 {[%clk 0:00:54]}  Re6 {[%clk 0:00:12]} 35. Bxc6 {[%clk 0:00:43]}  Qxc6 {[%clk 0:00:10]} 36. Qxc6 {[%clk 0:00:42]}  Rxc6 {[%clk 0:00:10]} 37. Rd7 {[%clk 0:00:43]}  Na5 {[%clk 0:00:09]} 38. Rxa7 {[%clk 0:00:37]}  Nc4 {[%clk 0:00:09]} 39. b4 {[%clk 0:00:34]}  Nb2 {[%clk 0:00:09]} 40. Bd4 {[%clk 0:00:33]}  Nd1 {[%clk 0:00:08]} 41. Rb7 {[%clk 0:00:25]}  Nxc3 {[%clk 0:00:08]} 42. Bxb6 {[%clk 0:00:25]}  Nd5 {[%clk 0:00:05]} 43. Bc5+ {[%clk 0:00:23]}  Kg8 {[%clk 0:00:05]} 44. a4 {[%clk 0:00:20]}  Nc3 {[%clk 0:00:03]} 45. a5 {[%clk 0:00:20]}  Re6 {[%clk 0:00:02]} 46. Rb6 {[%clk 0:00:18]}  Re1+ {[%clk 0:00:01]} 47. Kf2 {[%clk 0:00:18]}  Ra1 {[%clk 0:00:01]} 48. a6 {[%clk 0:00:18]}  Ra2+ {[%clk 0:00:00]} 49. Ke3 {[%clk 0:00:16]} 1-0


[Site "https://www.chess.com"]